fUSD/lending_fUSD_20260622
["ID","MTS","AMOUNT","RATE_DAILY","PERIOD"]
[426041616,1782131444000,-3592.15952175,0.00013821,2]
[426041615,1782131444000,-11742.95849212,0.00013821,2]
[426041618,1782131444000,-780.86,0.00013821,2]
[426041617,1782131444000,-1007.20313469,0.00013821,2]
[426041619,1782131444000,-14178.63480618,0.00013821,2]
[426041621,1782131444000,-24800.0,0.000139,5]
[426041625,1782131444000,-500.0,0.00013999,2]
[426041631,1782131444000,-500.0,0.00013999,2]
[426041632,1782131444000,-250.0,0.00014,2]
[426041622,1782131444000,-160.44,0.00013901,2]
[426041624,1782131444000,-9786.93261911,0.0001399,2]
[426041629,1782131444000,-1081.52,0.00013999,2]
[426041627,1782131444000,-500.0,0.00013999,2]
[426041628,1782131444000,-2386.14,0.00013999,2]
[426041623,1782131444000,-44949.59504929,0.00013976,2]
[426041626,1782131444000,-528.59,0.00013999,2]
[426041635,1782131444000,-1005.12,0.00014155,2]
[426041638,1782131444000,-4495.570995,0.00014285,2]
[426041634,1782131444000,-500.0,0.00014067,2]
[426041620,1782131444000,-2485.58,0.000139,2]
[426041661,1782131444000,-1000.0,0.00014798,2]
[426041679,1782131444000,-514.19,0.00014899,2]
[426041660,1782131444000,-1147.22476979,0.00014782,2]
[426041686,1782131444000,-522.59,0.00014899,2]
[426041684,1782131444000,-522.59,0.00014899,2]
[426041688,1782131444000,-522.59,0.00014899,2]
[426041687,1782131444000,-522.59,0.00014899,2]
[426041691,1782131444000,-522.66598871,0.00014899,2]
[426041690,1782131444000,-522.59,0.00014899,2]
[426041692,1782131444000,-500.0,0.00014899,2]
[426041697,1782131444000,-838.91,0.00014899,2]
[426041696,1782131444000,-838.91,0.00014899,2]
[426041681,1782131444000,-514.19,0.00014899,2]
[426041695,1782131444000,-838.91,0.00014899,2]
[426041700,1782131444000,-839.0362536,0.00014899,2]
[426041698,1782131444000,-838.91,0.00014899,2]
[426041699,1782131444000,-838.91,0.00014899,2]
[426041704,1782131444000,-500.0,0.00014899,2]
[426041701,1782131444000,-568.53186455,0.00014899,2]
[426041703,1782131444000,-1000.0,0.00014899,2]
[426041705,1782131444000,-1000.0,0.00014899,2]
[426041706,1782131444000,-500.0,0.00014899,2]
[426041663,1782131444000,-51044.05964543,0.000148,2]
[426041694,1782131444000,-2190.66016587,0.00014899,2]
[426041682,1782131444000,-522.59,0.00014899,2]
[426041693,1782131444000,-553.5069425,0.00014899,2]
[426041689,1782131444000,-522.59,0.00014899,2]
[426041685,1782131444000,-522.59,0.00014899,2]
[426041666,1782131444000,-4900.0,0.000148,5]
[426041658,1782131444000,-4900.0,0.000147,5]
[426041664,1782131444000,-430.73528035,0.000148,2]
[426041665,1782131444000,-2170.45698891,0.000148,2]
[426041662,1782131444000,-831.53404831,0.00014798,2]
[426041702,1782131444000,-500.0,0.00014899,2]
[426041668,1782131444000,-838.91,0.00014849,2]
[426041670,1782131444000,-121070.40266643,0.0001485,2]
[426041669,1782131444000,-500.0,0.00014849,2]
[426041667,1782131444000,-2055.88,0.00014848,2]
[426041674,1782131444000,-600.58062303,0.00014899,2]
[426041675,1782131444000,-514.19,0.00014899,2]
[426041673,1782131444000,-5800.0,0.00014891,2]
[426041671,1782131444000,-89262.23033772,0.0001485,2]
[426041672,1782131444000,-150.0,0.0001485,2]
[426041677,1782131444000,-514.19,0.00014899,2]
[426041676,1782131444000,-514.19,0.00014899,2]
[426041678,1782131444000,-514.19,0.00014899,2]
[426041680,1782131444000,-514.19,0.00014899,2]
[426041683,1782131444000,-522.59,0.00014899,2]
[426041755,1782131445000,-500.0,0.00014899,2]
[426041754,1782131445000,-500.0,0.00014899,2]
[426041753,1782131445000,-500.0,0.00014899,2]
[426041743,1782131445000,-500.0,0.00014899,2]
[426041737,1782131445000,-500.0,0.00014899,2]
[426041741,1782131445000,-500.0,0.00014899,2]
[426041740,1782131445000,-500.0,0.00014899,2]
[426041738,1782131445000,-500.0,0.00014899,2]
[426041732,1782131445000,-500.0,0.00014899,2]
[426041744,1782131445000,-500.0,0.00014899,2]
[426041739,1782131445000,-500.0,0.00014899,2]
[426041745,1782131445000,-500.0,0.00014899,2]
[426041757,1782131445000,-500.0,0.00014899,2]
[426041747,1782131445000,-500.0,0.00014899,2]
[426041742,1782131445000,-500.0,0.00014899,2]
[426041748,1782131445000,-500.0,0.00014899,2]
[426041751,1782131445000,-500.0,0.00014899,2]
[426041749,1782131445000,-500.0,0.00014899,2]
[426041756,1782131445000,-500.0,0.00014899,2]
[426041758,1782131445000,-500.0,0.00014899,2]
[426041760,1782131445000,-500.0,0.00014899,2]
[426041759,1782131445000,-500.0,0.00014899,2]
[426041764,1782131445000,-500.0,0.00014899,2]
[426041734,1782131445000,-500.0,0.00014899,2]
[426041746,1782131445000,-500.0,0.00014899,2]
[426041731,1782131445000,-500.0,0.00014899,2]
[426041709,1782131445000,-1000.0,0.00014899,2]
[426041733,1782131445000,-500.0,0.00014899,2]
[426041710,1782131445000,-500.0,0.00014899,2]
[426041712,1782131445000,-500.0,0.00014899,2]
[426041707,1782131445000,-1000.0,0.00014899,2]
[426041761,1782131445000,-500.0,0.00014899,2]
[426041708,1782131445000,-500.0,0.00014899,2]
[426041711,1782131445000,-1000.0,0.00014899,2]
[426041714,1782131445000,-500.0,0.00014899,2]
[426041715,1782131445000,-1000.0,0.00014899,2]
[426041713,1782131445000,-1000.0,0.00014899,2]
[426041718,1782131445000,-711.98,0.00014899,2]
[426041720,1782131445000,-711.98,0.00014899,2]
[426041736,1782131445000,-500.0,0.00014899,2]
[426041719,1782131445000,-711.98,0.00014899,2]
[426041716,1782131445000,-711.98,0.00014899,2]
[426041717,1782131445000,-711.98,0.00014899,2]
[426041722,1782131445000,-711.98,0.00014899,2]
[426041723,1782131445000,-500.0,0.00014899,2]
[426041725,1782131445000,-500.0,0.00014899,2]
[426041729,1782131445000,-500.0,0.00014899,2]
[426041727,1782131445000,-500.0,0.00014899,2]
[426041728,1782131445000,-500.0,0.00014899,2]
[426041726,1782131445000,-500.0,0.00014899,2]
[426041730,1782131445000,-500.0,0.00014899,2]
[426041735,1782131445000,-500.0,0.00014899,2]
[426041721,1782131445000,-711.98,0.00014899,2]
[426041765,1782131445000,-500.0,0.00014899,2]
[426041767,1782131445000,-500.0,0.00014899,2]
[426041814,1782131445000,-220.726948,0.000149,2]
[426041796,1782131445000,-500.0,0.00014899,2]
[426041793,1782131445000,-500.0,0.00014899,2]
[426041795,1782131445000,-500.0,0.00014899,2]
[426041800,1782131445000,-500.0,0.00014899,2]
[426041797,1782131445000,-500.0,0.00014899,2]
[426041799,1782131445000,-500.0,0.00014899,2]
[426041798,1782131445000,-500.0,0.00014899,2]
[426041801,1782131445000,-500.0,0.00014899,2]
[426041802,1782131445000,-500.0,0.00014899,2]
[426041806,1782131445000,-500.0,0.00014899,2]
[426041816,1782131445000,-44949.59504929,0.000149,2]
[426041807,1782131445000,-500.0,0.00014899,2]
[426041805,1782131445000,-500.0,0.00014899,2]
[426041809,1782131445000,-2705.86468068,0.000149,3]
[426041811,1782131445000,-220.726948,0.000149,2]
[426041815,1782131445000,-151.0,0.000149,2]
[426041810,1782131445000,-4900.0,0.000149,5]
[426041808,1782131445000,-5800.0,0.000149,2]
[426041813,1782131445000,-220.726948,0.000149,2]
[426041812,1782131445000,-220.726948,0.000149,2]
[426041762,1782131445000,-500.0,0.00014899,2]
[426041818,1782131445000,-169.19500707,0.00014925,2]
[426041817,1782131445000,-5800.0,0.000149,2]
[426041820,1782131445000,-176.21,0.00014985,2]
[426041819,1782131445000,-188.93,0.00014985,2]
[426041804,1782131445000,-500.0,0.00014899,2]
[426041794,1782131445000,-500.0,0.00014899,2]
[426041803,1782131445000,-500.0,0.00014899,2]
[426041781,1782131445000,-500.0,0.00014899,2]
[426041763,1782131445000,-500.0,0.00014899,2]
[426041766,1782131445000,-500.0,0.00014899,2]
[426041782,1782131445000,-500.0,0.00014899,2]
[426041777,1782131445000,-500.0,0.00014899,2]
[426041768,1782131445000,-500.0,0.00014899,2]
[426041778,1782131445000,-500.0,0.00014899,2]
[426041779,1782131445000,-500.0,0.00014899,2]
[426041770,1782131445000,-500.0,0.00014899,2]
[426041771,1782131445000,-500.0,0.00014899,2]
[426041772,1782131445000,-500.0,0.00014899,2]
[426041773,1782131445000,-500.0,0.00014899,2]
[426041774,1782131445000,-500.0,0.00014899,2]
[426041776,1782131445000,-500.0,0.00014899,2]
[426041769,1782131445000,-500.0,0.00014899,2]
[426041788,1782131445000,-500.0,0.00014899,2]
[426041775,1782131445000,-500.0,0.00014899,2]
[426041792,1782131445000,-500.0,0.00014899,2]
[426041786,1782131445000,-500.0,0.00014899,2]
[426041783,1782131445000,-500.0,0.00014899,2]
[426041789,1782131445000,-500.0,0.00014899,2]
[426041791,1782131445000,-500.0,0.00014899,2]
[426041787,1782131445000,-500.0,0.00014899,2]
[426041790,1782131445000,-500.0,0.00014899,2]
[426041780,1782131445000,-500.0,0.00014899,2]
[426041785,1782131445000,-500.0,0.00014899,2]
[426041784,1782131445000,-500.0,0.00014899,2]
[426041844,1782131446000,-1000.0,0.00014998,2]
[426041876,1782131446000,-1000.0,0.00014998,2]
[426041853,1782131446000,-1000.0,0.00014998,2]
[426041848,1782131446000,-1000.0,0.00014998,2]
[426041851,1782131446000,-1000.0,0.00014998,2]
[426041863,1782131446000,-1000.0,0.00014998,2]
[426041865,1782131446000,-1000.0,0.00014998,2]
[426041882,1782131446000,-1000.0,0.00014998,2]
[426041878,1782131446000,-1000.0,0.00014998,2]
[426041870,1782131446000,-1000.0,0.00014998,2]
[426041884,1782131446000,-1000.0,0.00014998,2]
[426041868,1782131446000,-1000.0,0.00014998,2]
[426041872,1782131446000,-1000.0,0.00014998,2]
[426041874,1782131446000,-1000.0,0.00014998,2]
[426041886,1782131446000,-1000.0,0.00014998,2]
[426041888,1782131446000,-1000.0,0.00014998,2]
[426041894,1782131446000,-1000.0,0.00014998,2]
[426041890,1782131446000,-1000.0,0.00014998,2]
[426041892,1782131446000,-1000.0,0.00014998,2]
[426041859,1782131446000,-1000.0,0.00014998,2]
[426041880,1782131446000,-1000.0,0.00014998,2]
[426041861,1782131446000,-1000.0,0.00014998,2]
[426041906,1782131446000,-1000.0,0.00014998,2]
[426041847,1782131446000,-1000.0,0.00014998,2]
[426041828,1782131446000,-151.0,0.00014997,2]
[426041830,1782131446000,-151.0,0.00014997,2]
[426041821,1782131446000,-150.0,0.00014985,2]
[426041822,1782131446000,-151.0,0.00014985,2]
[426041823,1782131446000,-500.0,0.00014985,2]
[426041826,1782131446000,-1578.64,0.00014988,2]
[426041824,1782131446000,-1005.12,0.00014988,2]
[426041836,1782131446000,-514.19,0.00014998,2]
[426041837,1782131446000,-514.19,0.00014998,2]
[426041839,1782131446000,-514.19,0.00014998,2]
[426041834,1782131446000,-151.0,0.00014997,2]
[426041835,1782131446000,-514.19,0.00014998,2]
[426041833,1782131446000,-151.0,0.00014997,2]
[426041842,1782131446000,-500.0,0.00014998,2]
[426041843,1782131446000,-648.46701629,0.00014998,2]
[426041841,1782131446000,-500.0,0.00014998,2]
[426041838,1782131446000,-514.19,0.00014998,2]
[426041840,1782131446000,-514.38447997,0.00014998,2]
[426041845,1782131446000,-1000.0,0.00014998,2]
[426041857,1782131446000,-1000.0,0.00014998,2]
[426041846,1782131446000,-1000.0,0.00014998,2]
[426041855,1782131446000,-1000.0,0.00014998,2]
[426041909,1782131446000,-1000.0,0.00014998,2]
[426041896,1782131446000,-1000.0,0.00014998,2]
[426041908,1782131446000,-1000.0,0.00014998,2]
[426041962,1782131446000,-500.0,0.00014999,2]
[426041958,1782131446000,-528.59,0.00014999,2]
[426041964,1782131446000,-528.59,0.00014999,2]
[426041968,1782131446000,-500.0,0.00014999,2]
[426041966,1782131446000,-500.0,0.00014999,2]
[426041970,1782131446000,-500.0,0.00014999,2]
[426041979,1782131446000,-528.59,0.00014999,2]
[426041976,1782131446000,-528.59,0.00014999,2]
[426041974,1782131446000,-619.82238308,0.00014999,2]
[426041980,1782131446000,-528.59,0.00014999,2]
[426041982,1782131446000,-528.59,0.00014999,2]
[426041989,1782131446000,-528.59,0.00014999,2]
[426041987,1782131446000,-528.59,0.00014999,2]
[426041985,1782131446000,-528.59,0.00014999,2]
[426041991,1782131446000,-528.59,0.00014999,2]
[426041993,1782131446000,-528.59,0.00014999,2]
[426041994,1782131446000,-528.59,0.00014999,2]
[426041999,1782131446000,-528.59,0.00014999,2]
[426042000,1782131446000,-500.0,0.00014999,2]
[426041996,1782131446000,-528.59,0.00014999,2]
[426041898,1782131446000,-1000.0,0.00014998,2]
[426041960,1782131446000,-500.0,0.00014999,2]
[426041954,1782131446000,-500.0,0.00014999,2]
[426041972,1782131446000,-528.59,0.00014999,2]
[426041956,1782131446000,-500.0,0.00014999,2]
[426041900,1782131446000,-1000.0,0.00014998,2]
[426041952,1782131446000,-500.0,0.00014999,2]
[426041904,1782131446000,-1000.0,0.00014998,2]
[426041902,1782131446000,-1000.0,0.00014998,2]
[426041910,1782131446000,-1000.0,0.00014998,2]
[426041914,1782131446000,-1000.0,0.00014998,2]
[426041916,1782131446000,-1000.0,0.00014998,2]
[426041912,1782131446000,-1000.0,0.00014998,2]
[426041918,1782131446000,-1000.0,0.00014998,2]
[426041931,1782131446000,-505.0877145,0.00014998,2]
[426041933,1782131446000,-711.98,0.00014998,2]
[426041920,1782131446000,-1000.0,0.00014998,2]
[426041947,1782131446000,-558010.4340287,0.00014999,2]
[426041927,1782131446000,-1000.0,0.00014998,2]
[426041924,1782131446000,-1000.0,0.00014998,2]
[426041929,1782131446000,-1000.0,0.00014998,2]
[426041940,1782131446000,-711.98,0.00014998,2]
[426041942,1782131446000,-711.98,0.00014998,2]
[426041938,1782131446000,-711.98,0.00014998,2]
[426041944,1782131446000,-712.02295184,0.00014998,2]
[426041935,1782131446000,-711.98,0.00014998,2]
[426041922,1782131446000,-1000.0,0.00014998,2]
[426041949,1782131446000,-500.0,0.00014999,2]
[426042094,1782131447000,-2386.14,0.00014999,2]
[426042105,1782131447000,-1081.52,0.00014999,2]
[426042101,1782131447000,-1081.52,0.00014999,2]
[426042099,1782131447000,-1081.52,0.00014999,2]
[426042092,1782131447000,-2386.14,0.00014999,2]
[426042103,1782131447000,-1081.52,0.00014999,2]
[426042090,1782131447000,-2386.14,0.00014999,2]
[426042088,1782131447000,-2386.14,0.00014999,2]
[426042107,1782131447000,-1081.52,0.00014999,2]
[426042097,1782131447000,-2386.2892691,0.00014999,2]
[426042110,1782131447000,-1081.52,0.00014999,2]
[426042139,1782131447000,-1081.5205594,0.00014999,2]
[426042112,1782131447000,-1081.52,0.00014999,2]
[426042123,1782131447000,-1081.52,0.00014999,2]
[426042128,1782131447000,-1081.52,0.00014999,2]
[426042121,1782131447000,-1081.52,0.00014999,2]
[426042119,1782131447000,-1081.52,0.00014999,2]
[426042130,1782131447000,-1081.52,0.00014999,2]
[426042114,1782131447000,-1081.52,0.00014999,2]
[426042116,1782131447000,-1081.52,0.00014999,2]
[426042136,1782131447000,-1081.52,0.00014999,2]
[426042085,1782131447000,-2386.14,0.00014999,2]
[426042125,1782131447000,-1081.52,0.00014999,2]
[426042079,1782131447000,-2386.14,0.00014999,2]
[426042031,1782131447000,-528.59,0.00014999,2]
[426042073,1782131447000,-2386.14,0.00014999,2]
[426042033,1782131447000,-500.0,0.00014999,2]
[426042029,1782131447000,-500.0,0.00014999,2]
[426042140,1782131447000,-500.0,0.00014999,2]
[426042027,1782131447000,-528.59,0.00014999,2]
[426042036,1782131447000,-528.59,0.00014999,2]
[426042042,1782131447000,-500.0,0.00014999,2]
[426042038,1782131447000,-500.0,0.00014999,2]
[426042048,1782131447000,-500.0,0.00014999,2]
[426042040,1782131447000,-528.73715606,0.00014999,2]
[426042050,1782131447000,-500.0,0.00014999,2]
[426042046,1782131447000,-500.0,0.00014999,2]
[426042075,1782131447000,-2386.14,0.00014999,2]
[426042052,1782131447000,-500.0,0.00014999,2]
[426042044,1782131447000,-500.0,0.00014999,2]
[426042054,1782131447000,-540.31307534,0.00014999,2]
[426042061,1782131447000,-2386.14,0.00014999,2]
[426042059,1782131447000,-2386.14,0.00014999,2]
[426042065,1782131447000,-2386.14,0.00014999,2]
[426042067,1782131447000,-2386.14,0.00014999,2]
[426042069,1782131447000,-2386.14,0.00014999,2]
[426042071,1782131447000,-2386.14,0.00014999,2]
[426042063,1782131447000,-2386.14,0.00014999,2]
[426042083,1782131447000,-2386.14,0.00014999,2]
[426042081,1782131447000,-2386.14,0.00014999,2]
[426042056,1782131447000,-2386.14,0.00014999,2]
[426042142,1782131447000,-500.0,0.00014999,2]
[426042132,1782131447000,-1081.52,0.00014999,2]
[426042153,1782131447000,-500.0,0.00014999,2]
[426042222,1782131447000,-1578.64,0.00014999,2]
[426042207,1782131447000,-1578.64,0.00014999,2]
[426042218,1782131447000,-1578.64,0.00014999,2]
[426042214,1782131447000,-1578.64,0.00014999,2]
[426042224,1782131447000,-1578.64,0.00014999,2]
[426042228,1782131447000,-500.0,0.00014999,2]
[426042226,1782131447000,-1578.65205983,0.00014999,2]
[426042209,1782131447000,-1578.64,0.00014999,2]
[426042220,1782131447000,-1578.64,0.00014999,2]
[426042211,1782131447000,-1578.64,0.00014999,2]
[426042216,1782131447000,-1578.64,0.00014999,2]
[426042246,1782131447000,-300.0,0.00014999,2]
[426042243,1782131447000,-300.0,0.00014999,2]
[426042230,1782131447000,-500.0,0.00014999,2]
[426042248,1782131447000,-666.0,0.00014999,2]
[426042250,1782131447000,-6190026.16611926,0.00015,2]
[426042232,1782131447000,-500.0,0.00014999,2]
[426042252,1782131447000,-429.52003206,0.00015,2]
[426042234,1782131447000,-500.0,0.00014999,2]
[426042237,1782131447000,-311.10309725,0.00014999,2]
[426042239,1782131447000,-300.0,0.00014999,2]
[426042254,1782131447000,-319.0,0.00015,2]
[426042134,1782131447000,-1081.52,0.00014999,2]
[426042201,1782131447000,-1578.64,0.00014999,2]
[426042199,1782131447000,-151.0,0.00014999,2]
[426042241,1782131447000,-300.0,0.00014999,2]
[426042188,1782131447000,-1005.12,0.00014999,2]
[426042155,1782131447000,-500.0,0.00014999,2]
[426042194,1782131447000,-1005.12,0.00014999,2]
[426042145,1782131447000,-500.0,0.00014999,2]
[426042151,1782131447000,-500.0,0.00014999,2]
[426042146,1782131447000,-500.0,0.00014999,2]
[426042149,1782131447000,-500.0,0.00014999,2]
[426042157,1782131447000,-500.0,0.00014999,2]
[426042162,1782131447000,-500.0,0.00014999,2]
[426042164,1782131447000,-500.0,0.00014999,2]
[426042166,1782131447000,-500.0,0.00014999,2]
[426042177,1782131447000,-1005.12,0.00014999,2]
[426042179,1782131447000,-1005.12,0.00014999,2]
[426042160,1782131447000,-500.0,0.00014999,2]
[426042168,1782131447000,-567.27066684,0.00014999,2]
[426042203,1782131447000,-1578.64,0.00014999,2]
[426042190,1782131447000,-1005.12,0.00014999,2]
[426042205,1782131447000,-1578.64,0.00014999,2]
[426042186,1782131447000,-1005.12,0.00014999,2]
[426042184,1782131447000,-1005.12,0.00014999,2]
[426042196,1782131447000,-1005.2649192,0.00014999,2]
[426042192,1782131447000,-1005.12,0.00014999,2]
[426042173,1782131447000,-1005.12,0.00014999,2]
[426042171,1782131447000,-1005.12,0.00014999,2]
[426042175,1782131447000,-1005.12,0.00014999,2]
[426042182,1782131447000,-1005.12,0.00014999,2]
[426042332,1782131448000,-3757.59,0.00016116,2]
[426042342,1782131448000,-49999.99,0.00016116,2]
[426042340,1782131448000,-2138.48,0.00016116,2]
[426042336,1782131448000,-9816.51,0.00016116,2]
[426042330,1782131448000,-9999.99,0.00016116,2]
[426042346,1782131448000,-3885.28,0.00016116,2]
[426042324,1782131448000,-9999.99,0.00016116,2]
[426042326,1782131448000,-3024.16,0.00016116,2]
[426042322,1782131448000,-9999.99,0.00016116,2]
[426042316,1782131448000,-5808.02,0.00016116,2]
[426042318,1782131448000,-999.99,0.00016116,2]
[426042328,1782131448000,-299.99,0.00016116,4]
[426042338,1782131448000,-499.99,0.00016116,2]
[426042364,1782131448000,-622.19,0.00016438,2]
[426042333,1782131448000,-7675.15,0.00016116,2]
[426042348,1782131448000,-150.99,0.00016116,2]
[426042344,1782131448000,-9999.99,0.00016116,2]
[426042350,1782131448000,-9557.08,0.00016116,5]
[426042357,1782131448000,-4999.99,0.00016116,2]
[426042354,1782131448000,-9999.99,0.00016116,2]
[426042359,1782131448000,-1555.5,0.00016425,2]
[426042352,1782131448000,-253647.16,0.00016116,2]
[426042371,1782131448000,-302.96,0.00016438,2]
[426042373,1782131448000,-151.0,0.00016438,2]
[426042361,1782131448000,-544.3,0.00016438,2]
[426042314,1782131448000,-29828.81,0.00016116,2]
[426042335,1782131448000,-14228.62,0.00016116,2]
[426042320,1782131448000,-9999.99,0.00016116,2]
[426042273,1782131448000,-1001.49433652,0.00015,2]
[426042312,1782131448000,-1220.72,0.00016116,2]
[426042368,1782131448000,-302.0,0.00016438,2]
[426042258,1782131448000,-113494.0016337,0.00015,2]
[426042256,1782131448000,-151.0,0.00015,2]
[426042262,1782131448000,-168.115348,0.00015,2]
[426042266,1782131448000,-163.159178,0.00015,2]
[426042265,1782131448000,-151.0,0.00015,2]
[426042260,1782131448000,-184317.6678701,0.00015,2]
[426042275,1782131448000,-151.0,0.00015,2]
[426042269,1782131448000,-1001.49433652,0.00015,2]
[426042271,1782131448000,-1001.49433652,0.00015,2]
[426042278,1782131448000,-157.9873146,0.00015,2]
[426042280,1782131448000,-157.46943484,0.00015,2]
[426042310,1782131448000,-300.0,0.00016,2]
[426042282,1782131448000,-220.726948,0.00015,2]
[426042288,1782131448000,-220.726948,0.00015,2]
[426042286,1782131448000,-220.726948,0.00015,2]
[426042290,1782131448000,-151.0,0.00015,2]
[426042296,1782131448000,-1088.11773686,0.00015136,2]
[426042300,1782131448000,-500.13,0.0001534,2]
[426042294,1782131448000,-173.283087,0.00015068,2]
[426042292,1782131448000,-150.0,0.00015068,2]
[426042298,1782131448000,-217.15,0.00015184,2]
[426042302,1782131448000,-186.27,0.0001534,2]
[426042306,1782131448000,-1252.0,0.00015643,2]
[426042304,1782131448000,-199.5,0.00015494,2]
[426042308,1782131448000,-1500.0,0.00015877,2]
[426042284,1782131448000,-220.726948,0.00015,2]
[426042366,1782131448000,-687.0,0.00016438,2]
[426042455,1782131448000,-674.89287616,0.00017171,2]
[426042379,1782131448000,-10210.7323249,0.000165,2]
[426042441,1782131448000,-275.17841504,0.00017139,2]
[426042444,1782131448000,-12084.07930152,0.0001714,2]
[426042446,1782131448000,-1005.21642175,0.00017146,2]
[426042442,1782131448000,-2129.0,0.00017139,2]
[426042451,1782131448000,-538.8471151,0.00017152,2]
[426042457,1782131448000,-731.31527162,0.00017175,2]
[426042449,1782131448000,-538.8471151,0.00017147,2]
[426042459,1782131448000,-731.31527162,0.00017176,2]
[426042477,1782131448000,-538.8471151,0.00017212,2]
[426042468,1782131448000,-1838.8288593,0.000172,2]
[426042453,1782131448000,-512.80349166,0.00017156,2]
[426042466,1782131448000,-1809.40850118,0.00017195,2]
[426042428,1782131448000,-566.36429011,0.00017121,2]
[426042465,1782131448000,-510.9599519,0.00017195,2]
[426042471,1782131448000,-10210.7323249,0.000172,2]
[426042461,1782131448000,-731.31527162,0.0001719,2]
[426042473,1782131448000,-731.31527162,0.000172,2]
[426042475,1782131448000,-510.9599519,0.00017201,2]
[426042479,1782131448000,-1809.40850118,0.00017216,2]
[426042488,1782131448000,-1005.21642175,0.00017259,2]
[426042486,1782131448000,-1005.21642175,0.00017249,2]
[426042482,1782131448000,-510.9599519,0.00017221,2]
[426042490,1782131448000,-687.01,0.0001726,2]
[426042484,1782131448000,-1005.21642175,0.00017232,2]
[426042493,1782131448000,-238.0,0.0001726,2]
[426042375,1782131448000,-300.0,0.00016499,2]
[426042463,1782131448000,-566.36429011,0.00017192,2]
[426042436,1782131448000,-566.36429011,0.00017138,2]
[426042495,1782131448000,-731.31527162,0.00017263,2]
[426042430,1782131448000,-510.9599519,0.00017123,2]
[426042383,1782131448000,-183.5,0.00016584,2]
[426042381,1782131448000,-687.0,0.00016575,2]
[426042377,1782131448000,-1838.8288593,0.000165,2]
[426042385,1782131448000,-795.46,0.000166,2]
[426042396,1782131448000,-201.0,0.0001681,3]
[426042391,1782131448000,-168.98,0.00016712,2]
[426042387,1782131448000,-1838.8288593,0.000167,2]
[426042438,1782131448000,-219.49549315,0.00017139,2]
[426042389,1782131448000,-10210.7323249,0.000167,2]
[426042398,1782131448000,-1838.8288593,0.000169,2]
[426042400,1782131448000,-10210.7323249,0.000169,2]
[426042406,1782131448000,-1838.8288593,0.00017,2]
[426042404,1782131448000,-1613.0535,0.00016973,2]
[426042393,1782131448000,-191.35,0.00016767,2]
[426042408,1782131448000,-10210.7323249,0.00017,2]
[426042432,1782131448000,-731.31527162,0.00017125,2]
[426042402,1782131448000,-603.52,0.00016931,2]
[426042434,1782131448000,-939.52245246,0.00017134,2]
[426042427,1782131448000,-731.31527162,0.00017118,2]
[426042419,1782131448000,-731.31527162,0.0001711,2]
[426042425,1782131448000,-731.31527162,0.00017115,2]
[426042417,1782131448000,-1005.21642175,0.00017108,2]
[426042421,1782131448000,-939.52245246,0.00017111,2]
[426042414,1782131448000,-538.8471151,0.00017107,2]
[426042410,1782131448000,-170.0,0.00017085,2]
[426042412,1782131448000,-170.0,0.00017085,2]
[426042423,1782131448000,-1005.21642175,0.00017113,2]
[426042576,1782131449000,-204.4,0.000182,2]